[Event "Titled Tuesday Blitz July 25 Late 2023"]
[White "UgarteCesar"]
[Black "Yeritsyan, Hayk"]
[BlackFideId "13307320"]
[WhiteElo "2299"]
[BlackElo "2465"]
[Result "0-1"]
[Round "6"]
[TimeControl "180+2"]
[Date "2023.07.25"]
[WhiteClock "0:00:10"]
[BlackClock "0:00:05"]
[Board "136"]

1. d4 {[%clk 0:03:00]}  d5 {[%clk 0:02:58]} 2. Bf4 {[%clk 0:03:00]}  c5 {[%clk 0:02:56]} 3. e3 {[%clk 0:03:00]}  cxd4 {[%clk 0:02:56]} 4. exd4 {[%clk 0:03:00]}  Nf6 {[%clk 0:02:56]} 5. Nf3 {[%clk 0:02:59]}  Bg4 {[%clk 0:02:54]} 6. Be2 {[%clk 0:03:00]}  Nc6 {[%clk 0:02:54]} 7. c3 {[%clk 0:03:00]}  e6 {[%clk 0:02:51]} 8. Nbd2 {[%clk 0:03:00]}  Bd6 {[%clk 0:02:51]} 9. Bxd6 {[%clk 0:03:01]}  Qxd6 {[%clk 0:02:52]} 10. h3 {[%clk 0:03:01]}  Bh5 {[%clk 0:02:51]} 11. O-O {[%clk 0:03:01]}  Qc7 {[%clk 0:02:51]} 12. Re1 {[%clk 0:02:59]}  O-O {[%clk 0:02:51]} 13. Ne5 {[%clk 0:02:58]}  Bxe2 {[%clk 0:02:50]} 14. Qxe2 {[%clk 0:02:59]}  Nxe5 {[%clk 0:02:49]} 15. Qxe5 {[%clk 0:03:00]}  Qxe5 {[%clk 0:02:49]} 16. Rxe5 {[%clk 0:03:00]}  a6 {[%clk 0:02:49]} 17. Rae1 {[%clk 0:02:59]}  b5 {[%clk 0:02:49]} 18. a3 {[%clk 0:02:58]}  a5 {[%clk 0:02:48]} 19. f4 {[%clk 0:02:58]}  b4 {[%clk 0:02:28]} 20. axb4 {[%clk 0:02:59]}  axb4 {[%clk 0:02:29]} 21. f5 {[%clk 0:02:59]}  Nd7 {[%clk 0:02:06]} 22. R5e3 {[%clk 0:02:31]}  exf5 {[%clk 0:02:03]} 23. cxb4 {[%clk 0:02:28]}  Nf6 {[%clk 0:02:00]} 24. Re5 {[%clk 0:02:21]}  g6 {[%clk 0:02:00]} 25. Nb3 {[%clk 0:02:01]}  Rab8 {[%clk 0:01:56]} 26. Na5 {[%clk 0:01:49]}  Rxb4 {[%clk 0:01:41]} 27. Nc6 {[%clk 0:01:49]}  Rxb2 {[%clk 0:01:22]} 28. Ne7+ {[%clk 0:01:48]}  Kg7 {[%clk 0:01:22]} 29. Nxd5 {[%clk 0:01:48]}  Rd8 {[%clk 0:01:00]} 30. Nxf6 {[%clk 0:00:47]}  Kxf6 {[%clk 0:01:01]} 31. Rd1 {[%clk 0:00:47]}  Rb4 {[%clk 0:00:48]} 32. Ra5 {[%clk 0:00:42]}  Rbxd4 {[%clk 0:00:45]} 33. Ra6+ {[%clk 0:00:41]}  Kg7 {[%clk 0:00:42]} 34. Re1 {[%clk 0:00:37]}  Rd1 {[%clk 0:00:41]} 35. Kf2 {[%clk 0:00:37]}  Rxe1 {[%clk 0:00:40]} 36. Kxe1 {[%clk 0:00:38]}  Rb8 {[%clk 0:00:39]} 37. Kf2 {[%clk 0:00:37]}  Rb3 {[%clk 0:00:39]} 38. h4 {[%clk 0:00:35]}  Rb4 {[%clk 0:00:31]} 39. g3 {[%clk 0:00:35]}  Rg4 {[%clk 0:00:30]} 40. Kf3 {[%clk 0:00:35]}  h5 {[%clk 0:00:29]} 41. Rb6 {[%clk 0:00:34]}  f4 {[%clk 0:00:26]} 42. gxf4 {[%clk 0:00:31]}  Rxh4 {[%clk 0:00:27]} 43. Kg3 {[%clk 0:00:28]}  Rg4+ {[%clk 0:00:26]} 44. Kf3 {[%clk 0:00:29]}  Rg1 {[%clk 0:00:22]} 45. Kf2 {[%clk 0:00:28]}  Ra1 {[%clk 0:00:21]} 46. Kg3 {[%clk 0:00:23]}  Ra4 {[%clk 0:00:20]} 47. Rc6 {[%clk 0:00:21]}  Kh6 {[%clk 0:00:16]} 48. Rf6 {[%clk 0:00:19]}  Kg7 {[%clk 0:00:16]} 49. Rb6 {[%clk 0:00:19]}  f6 {[%clk 0:00:17]} 50. Rc6 {[%clk 0:00:18]}  Rb4 {[%clk 0:00:14]} 51. Kf3 {[%clk 0:00:18]}  Rb7 {[%clk 0:00:14]} 52. Kg3 {[%clk 0:00:18]}  Re7 {[%clk 0:00:14]} 53. Rd6 {[%clk 0:00:18]}  Kf7 {[%clk 0:00:14]} 54. Rb6 {[%clk 0:00:18]}  Re6 {[%clk 0:00:14]} 55. Rb7+ {[%clk 0:00:18]}  Re7 {[%clk 0:00:15]} 56. Rb6 {[%clk 0:00:19]}  g5 {[%clk 0:00:14]} 57. fxg5 {[%clk 0:00:17]}  fxg5 {[%clk 0:00:15]} 58. Rh6 {[%clk 0:00:17]}  h4+ {[%clk 0:00:13]} 59. Kg4 {[%clk 0:00:17]}  Re5 {[%clk 0:00:10]} 60. Rb6 {[%clk 0:00:13]}  Re6 {[%clk 0:00:08]} 61. Rb7+ {[%clk 0:00:13]}  Kg6 {[%clk 0:00:08]} 62. Rb5 {[%clk 0:00:12]}  Re4+ {[%clk 0:00:08]} 63. Kf3 {[%clk 0:00:12]}  Rf4+ {[%clk 0:00:08]} 64. Kg2 {[%clk 0:00:13]}  Kh5 {[%clk 0:00:08]} 65. Rc5 {[%clk 0:00:12]}  Ra4 {[%clk 0:00:07]} 66. Kh2 {[%clk 0:00:12]}  Kg4 {[%clk 0:00:06]} 67. Rb5 {[%clk 0:00:12]}  Ra2+ {[%clk 0:00:07]} 68. Kg1 {[%clk 0:00:13]}  h3 {[%clk 0:00:05]} 69. Rb4+ {[%clk 0:00:14]}  Kh5 {[%clk 0:00:05]} 70. Rb5 {[%clk 0:00:14]}  Kh4 {[%clk 0:00:05]} 71. Kh1 {[%clk 0:00:13]}  g4 {[%clk 0:00:06]} 72. Rb4 {[%clk 0:00:13]}  Kg3 {[%clk 0:00:05]} 73. Kg1 {[%clk 0:00:10]}  Ra1+ {[%clk 0:00:05]} 0-1


[Site "https://www.chess.com"]

[Event "Titled Tuesday Blitz July 25 Late 2023"]
[White "ExchangeAB"]
[Black "Schut, Han"]
[BlackFideId "1005561"]
[WhiteElo "2439"]
[BlackElo "2278"]
[Result "1-0"]
[Round "6"]
[TimeControl "180+2"]
[Date "2023.07.25"]
[WhiteClock "0:00:18"]
[BlackClock "0:00:03"]
[Board "137"]

1. d4 {[%clk 0:03:00]}  Nf6 {[%clk 0:02:54]} 2. Nc3 {[%clk 0:03:01]}  d5 {[%clk 0:02:53]} 3. Bf4 {[%clk 0:03:01]}  a6 {[%clk 0:02:49]} 4. e3 {[%clk 0:03:01]}  e6 {[%clk 0:02:50]} 5. Nf3 {[%clk 0:03:01]}  Bd6 {[%clk 0:02:49]} 6. Bd3 {[%clk 0:02:59]}  b6 {[%clk 0:02:47]} 7. O-O {[%clk 0:02:58]}  Bb7 {[%clk 0:02:47]} 8. Ne5 {[%clk 0:02:58]}  Ne4 {[%clk 0:02:46]} 9. Ne2 {[%clk 0:02:47]}  g5 {[%clk 0:02:17]} 10. Bg3 {[%clk 0:02:41]}  h5 {[%clk 0:02:14]} 11. f3 {[%clk 0:02:36]}  h4 {[%clk 0:02:04]} 12. Be1 {[%clk 0:02:34]}  Nf6 {[%clk 0:01:55]} 13. f4 {[%clk 0:02:27]}  g4 {[%clk 0:01:49]} 14. f5 {[%clk 0:02:20]}  Nbd7 {[%clk 0:01:40]} 15. fxe6 {[%clk 0:02:17]}  fxe6 {[%clk 0:01:37]} 16. Bg6+ {[%clk 0:02:14]}  Ke7 {[%clk 0:01:33]} 17. Nf7 {[%clk 0:02:10]}  Qg8 {[%clk 0:01:20]} 18. Nxh8 {[%clk 0:02:09]}  Qxh8 {[%clk 0:01:21]} 19. Nf4 {[%clk 0:02:05]}  Rg8 {[%clk 0:01:11]} 20. Bd3 {[%clk 0:02:03]}  Qh6 {[%clk 0:01:03]} 21. c3 {[%clk 0:01:34]}  e5 {[%clk 0:00:40]} 22. dxe5 {[%clk 0:01:28]}  Nxe5 {[%clk 0:00:40]} 23. Bc2 {[%clk 0:01:21]}  Qg5 {[%clk 0:00:32]} 24. Kh1 {[%clk 0:01:15]}  c6 {[%clk 0:00:20]} 25. Qe2 {[%clk 0:01:04]}  Bc8 {[%clk 0:00:16]} 26. Nd3 {[%clk 0:00:53]}  Nxd3 {[%clk 0:00:14]} 27. Bxd3 {[%clk 0:00:54]}  Ne4 {[%clk 0:00:14]} 28. Bxe4 {[%clk 0:00:52]}  dxe4 {[%clk 0:00:15]} 29. Rd1 {[%clk 0:00:47]}  Qe5 {[%clk 0:00:14]} 30. g3 {[%clk 0:00:44]}  Be6 {[%clk 0:00:13]} 31. Qf2 {[%clk 0:00:40]}  Kd7 {[%clk 0:00:12]} 32. Qe2 {[%clk 0:00:38]}  Rf8 {[%clk 0:00:12]} 33. Rxf8 {[%clk 0:00:35]}  Ke7 {[%clk 0:00:13]} 34. Rf1 {[%clk 0:00:35]}  h3 {[%clk 0:00:12]} 35. Qxa6 {[%clk 0:00:32]}  b5 {[%clk 0:00:12]} 36. Qb7+ {[%clk 0:00:30]}  Bd7 {[%clk 0:00:12]} 37. Qb6 {[%clk 0:00:26]}  Bc5 {[%clk 0:00:11]} 38. Rxd7+ {[%clk 0:00:21]}  Kxd7 {[%clk 0:00:11]} 39. Qb7+ {[%clk 0:00:21]}  Kd6 {[%clk 0:00:09]} 40. Qf7 {[%clk 0:00:18]}  Bxe3 {[%clk 0:00:09]} 41. Bf2 {[%clk 0:00:17]}  Bxf2 {[%clk 0:00:09]} 42. Qxf2 {[%clk 0:00:18]}  e3 {[%clk 0:00:09]} 43. Qf6+ {[%clk 0:00:17]}  Qxf6 {[%clk 0:00:09]} 44. Rxf6+ {[%clk 0:00:17]}  Ke5 {[%clk 0:00:08]} 45. Rf8 {[%clk 0:00:17]}  Ke4 {[%clk 0:00:08]} 46. Kg1 {[%clk 0:00:17]}  Kd3 {[%clk 0:00:08]} 47. Kf1 {[%clk 0:00:17]}  Kd2 {[%clk 0:00:08]} 48. Rd8+ {[%clk 0:00:16]}  Kc2 {[%clk 0:00:08]} 49. Ke2 {[%clk 0:00:17]}  Kxb2 {[%clk 0:00:09]} 50. Kxe3 {[%clk 0:00:17]}  Kxc3 {[%clk 0:00:10]} 51. Rc8 {[%clk 0:00:17]}  Kb4 {[%clk 0:00:10]} 52. Rxc6 {[%clk 0:00:17]}  Ka3 {[%clk 0:00:11]} 53. Rb6 {[%clk 0:00:18]}  Kxa2 {[%clk 0:00:03]} 54. Rxb5 {[%clk 0:00:18]} 1-0


[Site "https://www.chess.com"]

[Event "Titled Tuesday Blitz July 25 Late 2023"]
[White "Silva Lucena, Cristian"]
[Black "Clawitter, Craig"]
[WhiteFideId "2232588"]
[BlackFideId "2023105"]
[WhiteElo "2422"]
[BlackElo "2281"]
[Result "1-0"]
[Round "6"]
[TimeControl "180+2"]
[Date "2023.07.25"]
[WhiteClock "0:01:14"]
[BlackClock "0:00:00"]
[Board "138"]

1. Nf3 {[%clk 0:02:56]}  Nf6 {[%clk 0:03:00]} 2. g3 {[%clk 0:02:54]}  d5 {[%clk 0:02:59]} 3. Bg2 {[%clk 0:02:55]}  e6 {[%clk 0:03:00]} 4. O-O {[%clk 0:02:54]}  Be7 {[%clk 0:03:00]} 5. d3 {[%clk 0:02:54]}  O-O {[%clk 0:03:00]} 6. Nbd2 {[%clk 0:02:52]}  c5 {[%clk 0:02:59]} 7. h4 {[%clk 0:02:48]}  Nc6 {[%clk 0:02:57]} 8. Re1 {[%clk 0:02:45]}  b5 {[%clk 0:02:55]} 9. a4 {[%clk 0:02:43]}  bxa4 {[%clk 0:02:42]} 10. Rxa4 {[%clk 0:02:39]}  a5 {[%clk 0:02:36]} 11. e4 {[%clk 0:02:37]}  Ba6 {[%clk 0:02:34]} 12. e5 {[%clk 0:02:33]}  Nd7 {[%clk 0:02:33]} 13. h5 {[%clk 0:02:33]}  h6 {[%clk 0:02:32]} 14. Rg4 {[%clk 0:02:32]}  Qc7 {[%clk 0:02:09]} 15. Qe2 {[%clk 0:02:28]}  Rae8 {[%clk 0:01:33]} 16. Nf1 {[%clk 0:02:25]}  f5 {[%clk 0:01:25]} 17. exf6 {[%clk 0:02:20]}  Nxf6 {[%clk 0:01:25]} 18. Qxe6+ {[%clk 0:02:19]}  Kh8 {[%clk 0:01:19]} 19. Nh4 {[%clk 0:02:07]}  Nxg4 {[%clk 0:01:19]} 20. Ng6+ {[%clk 0:02:06]}  Kh7 {[%clk 0:01:18]} 21. Nxf8+ {[%clk 0:02:04]}  Rxf8 {[%clk 0:01:07]} 22. Qxg4 {[%clk 0:02:04]}  Nd4 {[%clk 0:00:21]} 23. Bxd5 {[%clk 0:01:53]}  Nxc2 {[%clk 0:00:10]} 24. Qe4+ {[%clk 0:01:37]}  Kh8 {[%clk 0:00:07]} 25. Qxe7 {[%clk 0:01:36]}  Qxe7 {[%clk 0:00:06]} 26. Rxe7 {[%clk 0:01:37]}  Bxd3 {[%clk 0:00:06]} 27. Ne3 {[%clk 0:01:27]}  Nd4 {[%clk 0:00:04]} 28. Bd2 {[%clk 0:01:19]}  a4 {[%clk 0:00:00]} 29. Bc3 {[%clk 0:01:14]} 1-0


[Site "https://www.chess.com"]

[Event "Titled Tuesday Blitz July 25 Late 2023"]
[White "Burke, Paul"]
[Black "Xia, Brandon"]
[WhiteFideId "2605767"]
[BlackFideId "30921880"]
[WhiteElo "1934"]
[BlackElo "2349"]
[Result "0-1"]
[Round "6"]
[TimeControl "180+2"]
[Date "2023.07.25"]
[WhiteClock "0:00:46"]
[BlackClock "0:01:14"]
[Board "143"]

1. e4 {[%clk 0:03:00]}  g6 {[%clk 0:02:57]} 2. Nc3 {[%clk 0:02:57]}  Bg7 {[%clk 0:02:57]} 3. g3 {[%clk 0:02:57]}  d6 {[%clk 0:02:58]} 4. Bg2 {[%clk 0:02:57]}  Nc6 {[%clk 0:02:58]} 5. Nge2 {[%clk 0:02:56]}  e5 {[%clk 0:02:59]} 6. d3 {[%clk 0:02:56]}  Nge7 {[%clk 0:02:59]} 7. O-O {[%clk 0:02:56]}  O-O {[%clk 0:03:00]} 8. h3 {[%clk 0:02:55]}  f5 {[%clk 0:02:59]} 9. f4 {[%clk 0:02:55]}  h6 {[%clk 0:02:59]} 10. Nd5 {[%clk 0:02:52]}  fxe4 {[%clk 0:02:54]} 11. dxe4 {[%clk 0:02:52]}  exf4 {[%clk 0:02:48]} 12. gxf4 {[%clk 0:02:43]}  Nxd5 {[%clk 0:02:34]} 13. exd5 {[%clk 0:02:42]}  Ne7 {[%clk 0:02:33]} 14. c4 {[%clk 0:02:38]}  Nf5 {[%clk 0:02:34]} 15. Qc2 {[%clk 0:02:18]}  Qh4 {[%clk 0:02:20]} 16. Bd2 {[%clk 0:02:08]}  Nd4 {[%clk 0:02:12]} 17. Nxd4 {[%clk 0:01:47]}  Bxd4+ {[%clk 0:02:12]} 18. Kh2 {[%clk 0:01:40]}  Bf5 {[%clk 0:02:08]} 19. Qd1 {[%clk 0:01:33]}  Bxb2 {[%clk 0:02:05]} 20. Rb1 {[%clk 0:01:24]}  Bxb1 {[%clk 0:01:59]} 21. Qxb1 {[%clk 0:01:23]}  Qf6 {[%clk 0:01:57]} 22. Be4 {[%clk 0:01:14]}  Rae8 {[%clk 0:01:25]} 23. Rf2 {[%clk 0:01:14]}  Bd4 {[%clk 0:01:23]} 24. Rg2 {[%clk 0:01:13]}  g5 {[%clk 0:01:22]} 25. fxg5 {[%clk 0:01:07]}  Qe5+ {[%clk 0:01:15]} 26. Kh1 {[%clk 0:00:58]}  Qxe4 {[%clk 0:01:13]} 27. gxh6+ {[%clk 0:00:46]}  Kh8 {[%clk 0:01:14]} 0-1


[Site "https://www.chess.com"]

[Event "Titled Tuesday Blitz July 25 Late 2023"]
[White "Broca Jimenez, Fernando"]
[Black "Kozusek, Daniel"]
[WhiteFideId "5104742"]
[BlackFideId "349500"]
[WhiteElo "2274"]
[BlackElo "2457"]
[Result "0-1"]
[Round "6"]
[TimeControl "180+2"]
[Date "2023.07.25"]
[WhiteClock "0:00:01"]
[BlackClock "0:00:10"]
[Board "145"]

1. Nf3 {[%clk 0:03:00]}  d5 {[%clk 0:02:50]} 2. b3 {[%clk 0:03:00]}  Nf6 {[%clk 0:02:50]} 3. Bb2 {[%clk 0:02:59]}  g6 {[%clk 0:02:51]} 4. e3 {[%clk 0:02:54]}  Bg7 {[%clk 0:02:50]} 5. Be2 {[%clk 0:02:50]}  O-O {[%clk 0:02:49]} 6. O-O {[%clk 0:02:51]}  c5 {[%clk 0:02:50]} 7. d4 {[%clk 0:02:50]}  cxd4 {[%clk 0:02:46]} 8. Nxd4 {[%clk 0:02:48]}  e5 {[%clk 0:02:45]} 9. Nf3 {[%clk 0:02:47]}  e4 {[%clk 0:02:46]} 10. Nd4 {[%clk 0:02:46]}  Nc6 {[%clk 0:02:46]} 11. Nxc6 {[%clk 0:02:44]}  bxc6 {[%clk 0:02:46]} 12. c4 {[%clk 0:02:45]}  a5 {[%clk 0:02:36]} 13. Na3 {[%clk 0:02:37]}  Qe7 {[%clk 0:02:31]} 14. cxd5 {[%clk 0:02:33]}  cxd5 {[%clk 0:02:31]} 15. Nb5 {[%clk 0:02:29]}  Rd8 {[%clk 0:02:31]} 16. Nd4 {[%clk 0:02:26]}  Qd6 {[%clk 0:02:28]} 17. Rc1 {[%clk 0:02:26]}  Bd7 {[%clk 0:02:26]} 18. Qd2 {[%clk 0:02:24]}  h5 {[%clk 0:02:23]} 19. Rc2 {[%clk 0:02:20]}  a4 {[%clk 0:02:20]} 20. b4 {[%clk 0:02:18]}  a3 {[%clk 0:02:20]} 21. Ba1 {[%clk 0:02:17]}  Ng4 {[%clk 0:02:12]} 22. Bxg4 {[%clk 0:02:10]}  hxg4 {[%clk 0:02:13]} 23. Rfc1 {[%clk 0:01:59]}  Rdb8 {[%clk 0:02:13]} 24. Rc5 {[%clk 0:01:55]}  Ra4 {[%clk 0:02:07]} 25. Bc3 {[%clk 0:01:50]}  Bf8 {[%clk 0:02:01]} 26. Nb3 {[%clk 0:01:42]}  d4 {[%clk 0:01:43]} 27. exd4 {[%clk 0:01:29]}  Qb6 {[%clk 0:01:35]} 28. Qg5 {[%clk 0:01:23]}  Be6 {[%clk 0:01:27]} 29. d5 {[%clk 0:01:20]}  Bf5 {[%clk 0:01:27]} 30. Rc6 {[%clk 0:01:15]}  Qd8 {[%clk 0:01:21]} 31. Bf6 {[%clk 0:01:14]}  Qxd5 {[%clk 0:01:21]} 32. R6c5 {[%clk 0:01:05]}  Qd7 {[%clk 0:01:14]} 33. Nd4 {[%clk 0:00:58]}  Be6 {[%clk 0:01:10]} 34. Nxe6 {[%clk 0:00:55]}  Qxe6 {[%clk 0:01:10]} 35. Re5 {[%clk 0:00:54]}  Qxa2 {[%clk 0:00:42]} 36. Rxe4 {[%clk 0:00:40]}  Raa8 {[%clk 0:00:21]} 37. Rxg4 {[%clk 0:00:38]}  Bg7 {[%clk 0:00:20]} 38. Rh4 {[%clk 0:00:36]}  Qb2 {[%clk 0:00:18]} 39. Bxg7 {[%clk 0:00:07]}  Qxg7 {[%clk 0:00:16]} 40. Rh3 {[%clk 0:00:03]}  a2 {[%clk 0:00:16]} 41. Rhc3 {[%clk 0:00:01]}  a1=Q {[%clk 0:00:12]} 42. h4 {[%clk 0:00:01]}  Qaxc3 {[%clk 0:00:10]} 0-1


[Site "https://www.chess.com"]

[Event "Titled Tuesday Blitz July 25 Late 2023"]
[White "The_Straightforward_Rook"]
[Black "Mendez Machado, Andre"]
[BlackFideId "6603793"]
[WhiteElo "2399"]
[BlackElo "2249"]
[Result "0-1"]
[Round "6"]
[TimeControl "180+2"]
[Date "2023.07.25"]
[WhiteClock "0:01:32"]
[BlackClock "0:00:31"]
[Board "148"]

1. e4 {[%clk 0:03:00]}  e5 {[%clk 0:02:48]} 2. Nf3 {[%clk 0:03:00]}  Nc6 {[%clk 0:02:45]} 3. Bc4 {[%clk 0:03:00]}  Bc5 {[%clk 0:02:40]} 4. d3 {[%clk 0:03:00]}  Nf6 {[%clk 0:02:38]} 5. a4 {[%clk 0:03:00]}  d6 {[%clk 0:02:37]} 6. c3 {[%clk 0:02:55]}  a6 {[%clk 0:02:36]} 7. a5 {[%clk 0:02:54]}  Ba7 {[%clk 0:02:32]} 8. Nbd2 {[%clk 0:02:54]}  O-O {[%clk 0:02:32]} 9. Nf1 {[%clk 0:02:55]}  Kh8 {[%clk 0:02:00]} 10. Be3 {[%clk 0:02:52]}  d5 {[%clk 0:01:54]} 11. exd5 {[%clk 0:02:49]}  Nxd5 {[%clk 0:01:54]} 12. Bxa7 {[%clk 0:02:50]}  Rxa7 {[%clk 0:01:53]} 13. Ne3 {[%clk 0:02:35]}  Nf4 {[%clk 0:01:52]} 14. O-O {[%clk 0:02:31]}  Qf6 {[%clk 0:01:33]} 15. Nd5 {[%clk 0:02:25]}  Qg6 {[%clk 0:01:31]} 16. Nxf4 {[%clk 0:02:20]}  exf4 {[%clk 0:01:29]} 17. Kh1 {[%clk 0:02:21]}  Bg4 {[%clk 0:01:28]} 18. d4 {[%clk 0:02:16]}  Qh5 {[%clk 0:01:19]} 19. Be2 {[%clk 0:02:16]}  f5 {[%clk 0:01:10]} 20. Ng1 {[%clk 0:02:14]}  Bxe2 {[%clk 0:00:54]} 21. Qxe2 {[%clk 0:02:15]}  Qh6 {[%clk 0:00:50]} 22. Rfe1 {[%clk 0:02:09]}  Raa8 {[%clk 0:00:50]} 23. Qe6 {[%clk 0:02:06]}  Qxe6 {[%clk 0:00:46]} 24. Rxe6 {[%clk 0:02:07]}  Rae8 {[%clk 0:00:45]} 25. Rae1 {[%clk 0:01:50]}  Rxe6 {[%clk 0:00:44]} 26. Rxe6 {[%clk 0:01:51]}  Nxa5 {[%clk 0:00:43]} 27. Re7 {[%clk 0:01:50]}  Rc8 {[%clk 0:00:38]} 28. Re5 {[%clk 0:01:51]}  Nc4 {[%clk 0:00:31]} 29. b3 {[%clk 0:01:32]}  Nxe5 {[%clk 0:00:31]} 0-1


[Site "https://www.chess.com"]

[Event "Titled Tuesday Blitz July 25 Late 2023"]
[White "Sarkar, Justin"]
[Black "Villarreal, Agustin"]
[WhiteFideId "2010011"]
[BlackFideId "125687"]
[WhiteElo "2229"]
[BlackElo "2354"]
[Result "0-1"]
[Round "6"]
[TimeControl "180+2"]
[Date "2023.07.25"]
[WhiteClock "0:00:00"]
[BlackClock "0:00:13"]
[Board "151"]

1. d4 {[%clk 0:02:56]}  Nf6 {[%clk 0:02:59]} 2. c4 {[%clk 0:02:55]}  e6 {[%clk 0:03:00]} 3. Nc3 {[%clk 0:02:47]}  Bb4 {[%clk 0:02:59]} 4. e3 {[%clk 0:02:42]}  O-O {[%clk 0:02:56]} 5. Bd3 {[%clk 0:02:42]}  d5 {[%clk 0:02:55]} 6. Nf3 {[%clk 0:02:38]}  b6 {[%clk 0:02:52]} 7. O-O {[%clk 0:02:26]}  Ba6 {[%clk 0:02:51]} 8. cxd5 {[%clk 0:02:16]}  exd5 {[%clk 0:02:52]} 9. Ne5 {[%clk 0:01:46]}  Bxd3 {[%clk 0:01:55]} 10. Qxd3 {[%clk 0:01:45]}  c5 {[%clk 0:01:20]} 11. dxc5 {[%clk 0:01:30]}  bxc5 {[%clk 0:01:09]} 12. Rd1 {[%clk 0:01:29]}  Qc7 {[%clk 0:00:50]} 13. Nf3 {[%clk 0:01:27]}  Rd8 {[%clk 0:00:49]} 14. e4 {[%clk 0:01:08]}  Bxc3 {[%clk 0:00:39]} 15. bxc3 {[%clk 0:01:05]}  Nxe4 {[%clk 0:00:36]} 16. c4 {[%clk 0:01:01]}  Nd7 {[%clk 0:00:25]} 17. cxd5 {[%clk 0:00:56]}  Ndf6 {[%clk 0:00:25]} 18. Qc4 {[%clk 0:00:38]}  Nd6 {[%clk 0:00:25]} 19. Qf4 {[%clk 0:00:26]}  Nb5 {[%clk 0:00:20]} 20. Qxc7 {[%clk 0:00:18]}  Nxc7 {[%clk 0:00:21]} 21. d6 {[%clk 0:00:16]}  Nb5 {[%clk 0:00:21]} 22. Bf4 {[%clk 0:00:12]}  Ne4 {[%clk 0:00:18]} 23. d7 {[%clk 0:00:06]}  Nf6 {[%clk 0:00:18]} 24. a4 {[%clk 0:00:04]}  Nc3 {[%clk 0:00:16]} 25. Rd2 {[%clk 0:00:04]}  Nce4 {[%clk 0:00:16]} 26. Rc2 {[%clk 0:00:03]}  Rxd7 {[%clk 0:00:15]} 27. Ne5 {[%clk 0:00:04]}  Rd5 {[%clk 0:00:14]} 28. f3 {[%clk 0:00:04]}  Nd6 {[%clk 0:00:11]} 29. Rac1 {[%clk 0:00:04]}  c4 {[%clk 0:00:10]} 30. Nxc4 {[%clk 0:00:04]}  Nxc4 {[%clk 0:00:11]} 31. Rxc4 {[%clk 0:00:04]}  Rad8 {[%clk 0:00:12]} 32. Rc8 {[%clk 0:00:02]}  h6 {[%clk 0:00:12]} 33. Rxd8+ {[%clk 0:00:02]}  Rxd8 {[%clk 0:00:13]} 34. Rc7 {[%clk 0:00:00]}  Rd4 {[%clk 0:00:13]} 0-1


[Site "https://www.chess.com"]

[Event "Titled Tuesday Blitz July 25 Late 2023"]
[White "Alexikov, Alexander"]
[Black "Rian, Kapriaga"]
[WhiteFideId "14103958"]
[BlackFideId "7103263"]
[WhiteElo "2219"]
[BlackElo "2350"]
[Result "0-1"]
[Round "6"]
[TimeControl "180+2"]
[Date "2023.07.25"]
[WhiteClock "0:00:00"]
[BlackClock "0:00:21"]
[Board "152"]

1. e4 {[%clk 0:03:00]}  c6 {[%clk 0:02:58]} 2. d4 {[%clk 0:02:58]}  d5 {[%clk 0:02:56]} 3. exd5 {[%clk 0:02:57]}  cxd5 {[%clk 0:02:56]} 4. Bd3 {[%clk 0:02:57]}  Nc6 {[%clk 0:02:56]} 5. c3 {[%clk 0:02:56]}  Qc7 {[%clk 0:02:56]} 6. Ne2 {[%clk 0:02:55]}  Bg4 {[%clk 0:02:54]} 7. f3 {[%clk 0:02:51]}  Bd7 {[%clk 0:02:53]} 8. Bf4 {[%clk 0:02:51]}  e5 {[%clk 0:02:52]} 9. dxe5 {[%clk 0:02:49]}  Nxe5 {[%clk 0:02:51]} 10. Bc2 {[%clk 0:02:40]}  Nf6 {[%clk 0:02:48]} 11. Nd2 {[%clk 0:02:29]}  Bd6 {[%clk 0:02:45]} 12. Bg3 {[%clk 0:02:26]}  O-O {[%clk 0:02:40]} 13. Nb3 {[%clk 0:02:23]}  Rfe8 {[%clk 0:02:22]} 14. O-O {[%clk 0:02:21]}  Rad8 {[%clk 0:02:12]} 15. Nbd4 {[%clk 0:01:59]}  a6 {[%clk 0:02:09]} 16. Re1 {[%clk 0:01:40]}  Nh5 {[%clk 0:02:05]} 17. b3 {[%clk 0:01:21]}  b5 {[%clk 0:01:28]} 18. Qd2 {[%clk 0:01:19]}  g6 {[%clk 0:01:23]} 19. Rad1 {[%clk 0:01:16]}  Rc8 {[%clk 0:01:16]} 20. Bf2 {[%clk 0:01:09]}  Re7 {[%clk 0:00:55]} 21. Bb1 {[%clk 0:00:57]}  Rce8 {[%clk 0:00:52]} 22. Ng3 {[%clk 0:00:35]}  Ng7 {[%clk 0:00:43]} 23. Nde2 {[%clk 0:00:26]}  Bc6 {[%clk 0:00:38]} 24. Nd4 {[%clk 0:00:12]}  Bd7 {[%clk 0:00:35]} 25. Re2 {[%clk 0:00:12]}  Rc8 {[%clk 0:00:29]} 26. Re3 {[%clk 0:00:08]}  h5 {[%clk 0:00:25]} 27. Rde1 {[%clk 0:00:06]}  h4 {[%clk 0:00:23]} 28. Nf1 {[%clk 0:00:04]}  h3 {[%clk 0:00:23]} 29. g3 {[%clk 0:00:00]}  Rce8 {[%clk 0:00:21]} 0-1


[Site "https://www.chess.com"]

[Event "Titled Tuesday Blitz July 25 Late 2023"]
[White "Zhou, Qiyu"]
[Black "Ardila, Oscar Humberto"]
[WhiteFideId "505161"]
[BlackFideId "4404742"]
[WhiteElo "2335"]
[BlackElo "2218"]
[Result "1-0"]
[Round "6"]
[TimeControl "180+2"]
[Date "2023.07.25"]
[WhiteClock "0:01:59"]
[BlackClock "0:00:00"]
[Board "153"]

1. e4 {[%clk 0:03:00]}  e5 {[%clk 0:02:59]} 2. Nf3 {[%clk 0:03:00]}  Nf6 {[%clk 0:03:00]} 3. Nxe5 {[%clk 0:02:58]}  d6 {[%clk 0:03:00]} 4. Nc4 {[%clk 0:02:57]}  Nxe4 {[%clk 0:03:00]} 5. Nc3 {[%clk 0:02:58]}  Nf6 {[%clk 0:02:59]} 6. d4 {[%clk 0:02:55]}  Be7 {[%clk 0:03:00]} 7. Bf4 {[%clk 0:02:47]}  O-O {[%clk 0:02:59]} 8. Qd2 {[%clk 0:02:45]}  Bf5 {[%clk 0:02:58]} 9. O-O-O {[%clk 0:02:46]}  c6 {[%clk 0:02:57]} 10. Ne3 {[%clk 0:02:46]}  Be6 {[%clk 0:02:56]} 11. Bc4 {[%clk 0:02:42]}  d5 {[%clk 0:02:53]} 12. Bd3 {[%clk 0:02:41]}  b5 {[%clk 0:02:54]} 13. Kb1 {[%clk 0:02:35]}  b4 {[%clk 0:02:53]} 14. Ne2 {[%clk 0:02:35]}  a5 {[%clk 0:02:52]} 15. Ng3 {[%clk 0:02:30]}  Nbd7 {[%clk 0:02:51]} 16. Nef5 {[%clk 0:02:29]}  a4 {[%clk 0:02:45]} 17. Rhe1 {[%clk 0:02:19]}  Re8 {[%clk 0:02:45]} 18. Nxe7+ {[%clk 0:02:11]}  Qxe7 {[%clk 0:02:45]} 19. Nf5 {[%clk 0:02:10]}  Qf8 {[%clk 0:02:45]} 20. Bd6 {[%clk 0:02:08]}  Re7 {[%clk 0:02:04]} 21. Nxe7+ {[%clk 0:02:05]}  Kh8 {[%clk 0:02:04]} 22. Ng6+ {[%clk 0:02:05]}  fxg6 {[%clk 0:02:04]} 23. Bxf8 {[%clk 0:02:05]}  Rxf8 {[%clk 0:02:04]} 24. Rxe6 {[%clk 0:02:05]}  b3 {[%clk 0:00:53]} 25. Rxc6 {[%clk 0:02:02]}  Rb8 {[%clk 0:00:52]} 26. cxb3 {[%clk 0:02:00]}  axb3 {[%clk 0:00:52]} 27. a3 {[%clk 0:02:01]}  Nf8 {[%clk 0:00:00]} 28. Rdc1 {[%clk 0:01:59]} 1-0


[Site "https://www.chess.com"]